bitfinex/quotes_ETHUSD_20260202
["timestamp","ask_amount","ask_price","bid_price","bid_amount"]
[1770018542044,13.24131146,2249.1,2247.2,0.934]
[1770018542369,14.36790805,2249.1,2246.8,1.37738332]
[1770018542571,14.76095747,2249.1,2246.7,0.0008]
[1770018542770,13.24131146,2249.1,2246.7,12.8406332]
[1770018542969,13.24131146,2249.1,2246.9,12.8398332]
[1770018542970,13.13891146,2249.1,2246.9,12.8398332]
[1770018543274,0.933,2249.0,2247.0,13.7728332]
[1770018543475,0.933,2249.0,2247.2,12.8398332]
[1770018543672,0.933,2249.0,2247.4,12.8398332]
[1770018543977,0.1024,2249.5,2247.4,12.8398332]
[1770018544271,13.24131146,2249.3,2247.3,1.39523776]
[1770018544472,13.24131146,2249.3,2247.0,13.7728332]
[1770018544783,14.36790805,2249.3,2247.0,13.7728332]
[1770018544951,13.13891146,2248.9,2247.0,13.7728332]
[1770018545162,13.13891146,2248.5,2247.0,0.933]
[1770018545468,1.36016689,2249.2,2246.4,0.933]
[1770018545469,14.07191146,2248.4,2246.4,0.933]
[1770018545669,13.13891146,2248.2,2246.4,0.933]
[1770018545851,13.13891146,2248.2,2246.4,13.7728332]
[1770018546170,2.34019115,2248.3,2246.7,12.03330801]
[1770018546378,0.933,2248.3,2246.7,12.03330801]
[1770018547381,13.13891146,2248.7,2246.7,12.03330801]
[1770018547670,0.1035,2248.8,2246.4,0.933]
[1770018547671,13.10241205,2248.5,2246.4,0.933]
[1770018547871,13.66226445,2248.4,2246.4,0.933]
[1770018548276,13.10241205,2248.4,2246.4,0.933]
[1770018548474,14.41265326,2248.3,2246.4,0.933]
[1770018548678,13.10241205,2248.1,2246.1,0.09020693]
[1770018548874,0.933,2248.0,2246.1,13.82397792]
[1770018549472,0.933,2248.2,2246.1,13.82397792]
[1770018550382,13.10241205,2248.5,2246.1,13.82397792]
[1770018550581,0.933,2248.1,2246.3,13.73377099]
[1770018550966,14.03541205,2248.1,2246.2,1.38247779]
[1770018551165,14.03541205,2248.1,2246.1,0.09020693]
[1770018551362,0.1024,2248.0,2246.1,13.82397792]
[1770018551558,13.66915624,2248.3,2246.1,13.82397792]
[1770018551559,0.1024,2248.2,2246.1,13.82397792]
[1770018551874,1.0354,2248.2,2246.1,13.82397792]
[1770018552206,14.03541205,2248.2,2246.1,13.82397792]
[1770018552364,14.03541205,2248.2,2246.2,15.11624878]
[1770018552365,1.40354121,2248.1,2246.2,15.11624878]
[1770018553064,0.0011,2248.8,2246.4,13.73377099]
[1770018553294,0.0011,2248.8,2246.2,1.38247779]
[1770018553295,0.0011,2248.8,2246.6,13.96734129]
[1770018553656,0.0011,2248.8,2246.6,13.73377099]
[1770018554001,13.10351205,2248.8,2246.6,13.73377099]
[1770018554494,0.933,2248.7,2246.8,13.73377099]
[1770018554689,1.40365121,2248.6,2246.9,1.3733771]
[1770018554889,1.40365121,2248.6,2246.9,15.10714809]
[1770018555091,0.0011,2248.8,2246.9,14.87243752]
[1770018555297,0.0011,2248.8,2246.9,14.16977823]
[1770018555463,0.0011,2248.8,2247.1,13.73377099]
[1770018555997,0.0011,2248.8,2247.5,13.73377099]
[1770018556297,0.0011,2249.0,2247.1,0.2335703]
[1770018556298,0.0011,2249.0,2247.8,13.73377099]
[1770018557667,0.0011,2249.0,2247.6,2.3063771]
[1770018560020,0.0011,2248.8,2247.6,0.933]
[1770018560315,0.0011,2248.8,2247.0,14.66677099]
[1770018560999,11.00601205,2249.4,2247.0,14.66677099]
[1770018561908,11.56586445,2249.4,2247.0,14.66677099]
[1770018562102,13.10241205,2249.2,2247.1,1.51037782]
[1770018562300,13.10241205,2249.2,2247.1,15.24414881]
[1770018562501,13.66226445,2249.2,2247.1,15.24414881]
[1770018562882,13.10241205,2249.0,2247.1,15.24414881]
[1770018563491,13.10241205,2248.8,2247.1,1.51037782]
[1770018563810,13.10241205,2248.6,2247.0,0.933]
[1770018564184,1.40586013,2248.7,2247.0,14.66677099]
[1770018564385,0.933,2248.8,2247.0,14.66677099]
[1770018564605,0.1024,2248.9,2247.0,14.66677099]
[1770018565386,13.10241205,2249.0,2247.0,14.66677099]
[1770018565591,14.03541205,2249.0,2247.1,13.73377099]
[1770018566321,0.933,2249.0,2247.1,13.73377099]
[1770018566622,0.933,2249.0,2247.0,0.933]
[1770018566623,0.933,2249.0,2247.3,13.73377099]
[1770018567429,0.933,2249.0,2247.2,1.4666771]
[1770018567430,14.03541205,2249.0,2247.2,1.4666771]
[1770018567598,14.03541205,2249.0,2247.0,14.66677099]
[1770018568040,13.10241205,2248.8,2247.0,14.66677099]
[1770018568343,13.10241205,2248.6,2247.0,0.933]
[1770018570211,13.10241205,2248.4,2247.0,0.933]
[1770018570399,13.10241205,2248.4,2246.9,0.001]
[1770018570732,1.31024121,2248.3,2246.9,13.73477099]
[1770018570933,0.1024,2248.6,2246.9,13.73477099]
[1770018571142,13.10241205,2249.4,2247.1,13.73377099]
[1770018571365,1.18840976,2249.7,2247.3,13.73377099]
[1770018571535,1.18840976,2249.7,2247.2,5.634]
[1770018571536,13.10241205,2249.8,2247.5,13.73377099]
[1770018571734,0.95723355,2249.7,2247.5,13.73377099]
[1770018571940,0.95723355,2249.7,2247.2,0.933]
[1770018571941,0.1024,2249.3,2247.2,0.933]
[1770018572246,13.10241205,2248.6,2246.9,0.001]
[1770018572464,13.10241205,2248.3,2246.9,0.001]
[1770018572613,13.10241205,2248.1,2246.9,0.001]
[1770018572819,14.0596456,2248.0,2246.9,0.001]
[1770018573034,13.10241205,2248.0,2246.9,0.001]
[1770018573217,0.933,2248.0,2246.9,0.001]
[1770018573421,0.933,2248.0,2247.2,0.001]
[1770018573625,0.22534812,2248.0,2247.2,0.001]
[1770018573830,0.933,2248.3,2247.2,0.001]
[1770018574542,0.933,2248.4,2247.2,0.001]
[1770018577029,0.1024,2248.6,2247.2,0.001]
[1770018577230,0.933,2248.5,2247.2,0.001]
[1770018577457,13.10241205,2248.7,2247.2,0.001]
[1770018577642,1.18840976,2249.0,2247.2,13.73477099]
[1770018577852,0.933,2248.8,2247.2,13.73477099]
[1770018578358,13.10241205,2249.1,2247.2,13.73477099]
[1770018578525,0.9341,2249.2,2247.4,13.81878504]
[1770018578725,2.17135098,2249.2,2247.6,13.81878504]
[1770018578936,0.9341,2249.2,2247.6,13.81878504]
[1770018579471,0.0011,2249.2,2247.8,13.81878504]
[1770018579762,0.0011,2249.2,2248.0,13.81878504]
[1770018580336,0.0011,2249.2,2248.2,13.81878504]
[1770018580547,0.0011,2249.2,2248.3,2.8318785]
[1770018581156,13.8864174,2249.2,2247.4,13.81878504]
[1770018581659,0.95766003,2249.1,2247.4,13.81878504]
[1770018581970,13.8853174,2248.8,2247.2,0.934]
[1770018582169,1.89066131,2248.7,2247.2,0.934]
[1770018582386,0.933,2248.7,2247.2,0.934]
[1770018582552,1.48183174,2248.6,2247.2,0.934]
[1770018582903,0.933,2248.5,2247.2,0.934]
[1770018584998,1.48183174,2248.6,2247.2,0.934]
[1770018585157,2.41483174,2248.6,2247.2,14.75278504]
[1770018585351,0.933,2248.6,2247.2,14.75278504]
[1770018585753,0.933,2248.6,2247.2,0.934]
[1770018587171,0.933,2248.6,2247.4,0.001]
[1770018589504,15.17612716,2248.9,2247.4,0.001]
[1770018589706,0.933,2248.5,2247.4,0.001]
[1770018590404,0.933,2248.4,2247.4,0.001]
[1770018590573,14.68289592,2248.4,2247.4,0.001]
[1770018590773,1.46828959,2248.3,2247.2,0.001]
[1770018590970,15.21818551,2248.3,2247.2,0.001]
[1770018591313,15.8973758,2248.2,2247.0,0.001]
[1770018591477,13.74989592,2248.0,2246.9,0.001]
[1770018591673,13.74989592,2247.8,2245.5,0.001]
[1770018591980,13.74989592,2247.8,2244.7,0.001]
[1770018591981,13.85229592,2246.2,2244.7,0.001]
[1770018592204,13.85229592,2246.0,2244.7,0.001]
[1770018592409,13.85229592,2245.8,2244.6,0.0008]
[1770018592605,0.1024,2245.6,2244.5,0.001]
[1770018592777,2.9330752,2245.5,2244.5,0.001]
[1770018592974,0.95666889,2245.4,2244.5,0.001]
[1770018593175,1.04068475,2245.3,2244.3,0.001]
[1770018593484,0.98401809,2245.8,2244.3,0.001]
[1770018593685,15.49975808,2246.0,2244.3,13.92822089]
[1770018593686,0.0016,2246.0,2244.3,13.92822089]
[1770018594013,0.0016,2246.0,2244.4,15.32004298]
[1770018595287,13.85389592,2246.0,2244.4,1.39282209]
[1770018595489,13.85389592,2246.0,2244.3,0.001]
[1770018596100,14.81124734,2246.0,2244.3,0.001]
[1770018597021,0.1024,2245.8,2244.3,0.001]
[1770018597197,13.85229592,2245.6,2244.3,0.001]
[1770018597399,13.74989592,2245.4,2243.9,0.001]
[1770018597601,0.1024,2245.1,2243.7,0.001]
[1770018598105,13.85229592,2245.1,2243.7,0.001]
[1770018598423,14.80964734,2245.1,2243.7,0.001]
[1770018598622,0.95735142,2245.0,2243.7,0.001]
[1770018598789,0.934,2244.9,2243.7,0.001]
[1770018599519,0.934,2244.9,2243.6,0.001]
[1770018599722,0.95735142,2244.8,2243.4,0.001]
[1770018600503,0.934,2244.9,2243.4,0.001]
[1770018601427,0.95735142,2245.2,2243.7,13.92822089]
[1770018601599,0.1024,2245.5,2243.8,1.39282209]
[1770018601799,0.1024,2245.5,2243.8,15.32004298]
[1770018602104,13.85229592,2245.5,2243.8,1.39282209]
[1770018602329,0.2335703,2245.4,2243.7,0.001]
[1770018602506,13.74989592,2244.9,2243.7,0.001]
[1770018602714,14.68389592,2244.9,2243.4,0.001]
[1770018603209,0.1024,2244.8,2243.4,0.001]
[1770018603408,1.58102959,2244.8,2243.4,0.001]
[1770018603605,0.934,2244.9,2243.4,13.92822089]
[1770018605606,13.74989592,2245.3,2243.4,13.92822089]
[1770018605799,13.85339592,2245.6,2243.4,13.92822089]
[1770018606132,0.1035,2245.6,2243.4,13.92822089]
[1770018606523,14.30974832,2245.5,2243.6,13.92722089]
[1770018606837,1.44132483,2245.4,2243.7,15.41334298]
[1770018608236,0.1024,2245.3,2243.7,15.41334298]
[1770018608608,0.1024,2245.3,2243.8,0.934]
[1770018610720,0.1024,2245.3,2243.8,13.73675976]
[1770018610922,0.1035,2245.6,2243.8,13.73675976]
[1770018611235,0.1035,2245.6,2244.0,12.80275976]
[1770018612115,14.14046615,2245.6,2244.0,0.934]
[1770018612317,14.14046615,2245.6,2243.4,0.001]
[1770018612318,0.55538275,2245.5,2243.4,0.001]
[1770018612618,13.57951375,2245.0,2243.4,0.001]
[1770018612811,13.47711375,2244.4,2242.3,12.80275976]
[1770018613033,13.57951375,2244.3,2242.3,13.73675976]
[1770018613237,14.1348965,2244.3,2242.3,13.73675976]
[1770018613733,0.1024,2244.1,2242.3,13.73675976]
[1770018614051,13.57951375,2243.9,2241.8,12.80275976]
[1770018614236,13.57951375,2243.7,2241.8,13.73675976]
[1770018614419,0.2335703,2244.0,2241.8,0.934]
[1770018614420,13.47711375,2243.5,2241.8,0.934]
[1770018614613,14.51351375,2243.4,2241.7,0.001]
[1770018614811,13.57951375,2243.2,2241.7,0.001]
[1770018615042,0.1024,2243.0,2241.7,0.001]
[1770018615343,0.65778275,2243.0,2241.7,0.001]
[1770018615643,0.1024,2243.0,2241.7,0.001]
[1770018616019,0.1024,2243.3,2241.7,12.80375976]
[1770018616214,0.934,2243.4,2242.1,13.73855976]
[1770018616451,0.1024,2243.6,2242.2,1.37385598]
[1770018616623,0.1024,2243.6,2242.1,0.0008]
[1770018617460,0.1024,2243.7,2242.1,12.80355976]
[1770018618362,0.935,2244.0,2242.1,12.80355976]
[1770018618648,0.1024,2243.9,2242.1,12.80355976]
[1770018618832,13.47711375,2243.8,2242.1,0.0008]
[1770018619143,13.57951375,2243.6,2242.1,0.0008]
[1770018619357,14.1348965,2243.6,2242.1,0.0008]
[1770018619723,13.57951375,2243.4,2242.1,0.0008]
[1770018619958,14.1348965,2243.4,2242.1,0.0008]
[1770018620257,1.49038275,2243.3,2242.1,0.0008]
[1770018620419,0.1024,2243.1,2242.1,0.0008]
[1770018620820,1.50698965,2243.2,2242.1,0.0008]
[1770018621024,0.1024,2243.2,2242.1,0.0008]
[1770018621621,0.1024,2243.5,2242.1,12.80355976]
[1770018621850,0.1024,2243.9,2242.1,12.80355976]
[1770018622029,0.1024,2243.7,2242.1,12.80355976]
[1770018622351,0.1024,2243.7,2242.1,0.0008]
[1770018622534,1.46035137,2243.7,2242.1,0.0008]
[1770018624421,0.1024,2243.3,2241.7,0.001]
[1770018624623,1.0374,2243.3,2241.7,0.001]
[1770018625232,14.51451375,2243.3,2241.7,0.001]
[1770018625437,0.1024,2243.1,2241.7,0.001]
[1770018625639,13.57951375,2242.9,2241.7,0.001]
[1770018625922,13.57951375,2242.9,2240.3,12.80275976]
[1770018625923,0.1024,2242.3,2240.3,12.80275976]
[1770018626165,13.71068405,2242.4,2241.2,0.06241151]
[1770018626166,0.1024,2242.1,2241.2,0.06241151]
[1770018626376,0.35703873,2242.1,2241.2,0.04851504]
[1770018626556,0.65778275,2242.1,2241.2,0.03461919]
[1770018626741,0.1024,2241.9,2240.3,12.80275976]
[1770018626940,0.1024,2241.9,2241.1,0.11083655]
[1770018627270,0.1024,2241.9,2240.3,12.80275976]
[1770018627429,0.55538275,2241.8,2240.2,0.001]
[1770018627628,0.1024,2241.7,2240.2,0.001]
[1770018627869,0.1024,2241.9,2240.2,12.80375976]
[1770018627870,0.935,2241.6,2240.2,12.80375976]
[1770018628088,0.1024,2241.9,2241.2,0.001]
[1770018628363,0.1024,2241.9,2241.1,12.80275976]
[1770018628364,0.37821601,2242.1,2241.1,12.80275976]
[1770018629243,0.37821601,2242.1,2240.7,13.73775976]
[1770018629746,0.38490961,2242.6,2240.8,12.80275976]
[1770018630050,0.38490961,2242.6,2241.0,12.80275976]
[1770018630223,0.0016,2242.8,2241.2,12.80275976]
[1770018630430,0.3787842,2243.3,2241.7,12.80275976]
[1770018630651,0.0011,2243.7,2242.1,12.80275976]
[1770018631060,0.0011,2243.7,2242.3,12.80275976]
[1770018631756,0.40631216,2244.1,2242.2,12.80275976]
[1770018631956,0.40631216,2244.1,2242.5,12.80275976]
[1770018637173,0.40631216,2244.1,2242.4,0.935]
[1770018637174,13.57951375,2244.0,2242.4,0.935]
[1770018637464,0.1024,2243.6,2241.7,12.80275976]
[1770018637670,1.6109022,2243.5,2241.7,13.73775976]
[1770018637832,0.1024,2243.3,2241.9,13.22604181]
[1770018638237,0.55538275,2243.8,2241.9,13.22604181]
[1770018638437,0.1024,2243.6,2241.9,13.22604181]
[1770018638979,13.38158662,2243.6,2241.9,13.22604181]
[1770018639236,0.1024,2243.3,2241.6,0.9358]
[1770018639534,13.38158662,2243.1,2241.6,0.9358]
[1770018639743,0.1024,2242.9,2241.6,0.9358]
[1770018639948,0.1024,2242.7,2241.6,0.0008]
[1770018640273,0.1024,2242.5,2241.6,0.0008]
[1770018640769,0.1024,2242.5,2241.6,0.0018]
[1770018640945,0.1024,2242.3,2240.9,0.0008]
[1770018641265,0.1024,2242.1,2240.9,1.41698418]
[1770018641477,0.1024,2242.1,2240.9,0.0008]
[1770018641639,0.1024,2242.3,2240.9,13.22684181]
[1770018641838,0.95630591,2242.2,2240.9,13.22684181]
[1770018642065,0.1024,2242.3,2240.9,13.22684181]
[1770018642276,0.95626588,2242.2,2241.0,1.41628418]
[1770018642585,0.1024,2242.3,2241.0,14.64232599]
[1770018642735,0.935,2242.4,2241.0,14.64232599]
[1770018643577,1.18840976,2243.2,2241.0,14.64232599]
[1770018643737,1.18840976,2243.1,2241.0,14.64232599]
[1770018643950,1.18840976,2243.1,2240.9,0.0008]
[1770018643951,13.38158662,2242.9,2241.1,14.69035441]
[1770018644257,0.1024,2242.7,2241.1,15.62535441]
[1770018645173,0.1024,2242.5,2241.1,15.62535441]
[1770018645377,0.1024,2242.7,2241.1,2.3993126]
[1770018645378,13.38158662,2242.7,2241.1,2.3993126]
[1770018645590,0.1024,2242.5,2241.1,0.935]
[1770018645743,0.1024,2242.3,2241.1,0.935]
[1770018646074,0.1024,2242.3,2240.9,0.0008]
[1770018646299,2.12340976,2242.5,2240.9,0.0008]
[1770018646300,0.935,2242.5,2240.9,0.0008]
[1770018646469,1.05900127,2242.4,2240.9,13.22684181]
[1770018646789,0.1024,2242.4,2241.0,1.32278418]
[1770018647286,0.935,2242.5,2241.0,1.32278418]
[1770018647589,13.50655386,2242.3,2240.9,0.0008]
[1770018647757,0.1024,2242.1,2240.9,0.0008]
[1770018647958,0.1024,2241.9,2240.4,12.72488202]
[1770018648354,0.1024,2241.7,2240.4,12.72488202]
[1770018648768,0.1024,2242.1,2240.4,12.72488202]
[1770018648974,0.1024,2241.9,2240.5,1.3660882]
[1770018649573,0.1024,2241.9,2240.5,14.09097022]
[1770018649958,13.50655386,2241.9,2240.5,1.3660882]
[1770018650159,13.50655386,2241.7,2240.2,0.001]
[1770018650384,0.1024,2241.5,2240.2,0.001]
[1770018650603,13.50655386,2241.5,2240.2,0.001]
[1770018650771,0.1024,2241.3,2240.2,0.001]
[1770018650972,1.51117596,2241.2,2239.7,12.72488202]
[1770018651178,0.1024,2241.0,2239.7,13.99737022]
[1770018651505,0.1024,2241.6,2239.7,13.99737022]
[1770018652709,1.46949636,2242.1,2239.9,12.72488202]
[1770018652917,2.15747269,2242.5,2239.9,12.72488202]
[1770018652918,13.40415386,2241.9,2239.9,12.72488202]
[1770018653216,0.95449971,2241.8,2240.6,0.001]
[1770018653388,0.55538275,2241.9,2240.6,0.001]
[1770018653569,0.1024,2241.8,2240.6,0.001]
[1770018653788,2.15757641,2241.8,2240.6,0.001]
[1770018654088,0.1024,2241.5,2240.4,0.001]
[1770018654434,0.1024,2241.4,2239.7,13.99737022]
[1770018656236,0.1024,2241.3,2239.7,13.99737022]
[1770018656437,0.65778275,2241.3,2239.8,14.12461904]
[1770018656813,0.55538275,2241.3,2239.8,14.12461904]
[1770018657009,14.29550691,2241.7,2239.8,1.39973702]
[1770018657228,14.29550691,2241.7,2239.5,12.72588202]
[1770018657229,0.1024,2241.4,2239.5,12.72588202]
[1770018657417,0.55538275,2241.3,2239.5,12.72588202]
[1770018657822,0.1024,2241.2,2239.5,12.72588202]
[1770018658022,0.1024,2241.0,2239.5,12.72588202]
[1770018658225,13.50655386,2241.0,2239.5,0.001]
[1770018658409,0.1024,2240.8,2239.5,0.001]
[1770018658615,0.65778275,2240.8,2239.5,0.001]
[1770018658814,13.50655386,2240.6,2238.8,14.5]
[1770018659019,0.1024,2240.4,2238.8,14.5]
[1770018659240,0.65778275,2240.4,2238.6,13.66088202]
[1770018659547,0.65778275,2240.4,2238.7,1.3660882]
[1770018659714,0.65778275,2240.4,2238.7,28.59097022]
[1770018660044,14.06193661,2240.4,2238.7,1.3660882]
[1770018660213,0.55538275,2240.3,2238.3,12.72488202]
[1770018660413,1.41451822,2240.8,2238.3,12.72488202]
[1770018660414,14.18564507,2240.8,2238.3,12.72488202]
[1770018660635,0.1024,2240.6,2238.5,12.72488202]
[1770018660817,0.55538275,2240.6,2238.5,12.72488202]
[1770018661016,0.1024,2240.5,2238.5,12.72488202]
[1770018661214,0.1024,2240.5,2238.7,12.72488202]
[1770018661445,0.1024,2240.5,2238.8,12.72488202]
[1770018661649,1.49979366,2240.9,2239.0,12.72488202]
[1770018661835,13.62310539,2240.9,2239.0,12.72488202]
[1770018662035,13.50655386,2240.5,2238.9,0.936]
[1770018662416,0.1024,2240.3,2238.6,13.99737022]
[1770018662773,14.34015386,2240.2,2238.3,0.936]
[1770018662955,13.40415386,2240.0,2238.3,0.936]
[1770018663114,13.50655386,2239.8,2237.9,12.72588202]
[1770018663851,0.1024,2239.8,2237.9,12.72588202]
[1770018664221,0.1024,2239.8,2237.9,0.001]
[1770018664222,0.1024,2239.4,2237.9,0.001]
[1770018664439,1.45305539,2239.4,2237.9,0.001]
[1770018664646,1.45305539,2239.4,2237.9,12.72588202]
[1770018664955,1.5907285,2241.2,2239.6,1.45305539]
[1770018665113,14.90394752,2241.8,2239.7,13.66088202]
[1770018665313,13.40415386,2241.2,2239.2,12.72488202]
[1770018665561,2.43870245,2241.1,2239.2,12.72488202]
[1770018665718,0.1024,2241.1,2239.2,12.72488202]
[1770018665920,0.1024,2241.1,2239.3,1.2724882]
[1770018666422,0.1024,2241.1,2239.3,13.99737022]
[1770018668352,13.10140168,2241.1,2239.3,1.2724882]
[1770018668568,13.10140168,2240.9,2239.0,0.936]
[1770018668763,0.1024,2240.7,2239.0,0.936]
[1770018669072,13.95348672,2240.6,2239.0,0.936]
[1770018669358,0.1024,2240.4,2239.0,0.936]
[1770018669649,0.1024,2240.5,2239.0,0.936]
[1770018669873,0.1024,2240.3,2238.7,13.62253615]
[1770018670152,13.10140168,2240.3,2238.8,1.36225362]
[1770018670445,13.93500168,2240.3,2238.4,14.5]
[1770018670638,13.93500168,2240.3,2238.3,0.936]
[1770018670639,0.1024,2240.2,2238.3,0.936]
[1770018671141,0.1024,2240.2,2238.4,13.62253615]
[1770018671366,0.1024,2240.2,2236.7,0.23317561]
[1770018671367,14.50859981,2238.2,2236.7,0.23317561]
[1770018671682,0.35890801,2236.6,2235.8,0.0008]
[1770018671841,0.23293072,2237.0,2235.8,0.0008]
[1770018672041,7.25959507,2237.8,2235.8,13.62333615]
[1770018672392,0.1024,2237.7,2236.0,13.62253615]
[1770018672570,0.83859951,2237.7,2236.1,1.36225362]
[1770018672744,0.83859951,2237.7,2235.8,13.62333615]
[1770018672947,0.83859951,2237.7,2235.9,14.55953615]
[1770018673178,0.73619951,2237.7,2235.9,14.55953615]
[1770018673361,7.25959507,2237.8,2235.9,14.55953615]
[1770018673891,7.25959507,2237.8,2235.9,13.62253615]
[1770018674186,7.25959507,2237.8,2235.8,13.62333615]
[1770018674346,0.1024,2237.7,2235.8,13.62333615]
[1770018674551,4.40935536,2237.7,2235.8,28.12333615]
[1770018674746,0.44093554,2237.6,2235.9,16.52856977]
[1770018674969,4.30695536,2237.7,2235.9,16.52856977]
[1770018675181,4.30695536,2237.7,2236.1,13.62253615]
[1770018675361,4.30695536,2237.7,2236.3,13.62253615]
[1770018675546,4.30695536,2237.7,2236.4,14.5]
[1770018675746,4.30695536,2237.7,2236.3,13.62253615]
[1770018675747,4.30695536,2237.7,2236.5,0.937]
[1770018675993,0.43069554,2237.6,2235.9,2.90603362]
[1770018676147,0.1024,2237.5,2236.0,0.937]
[1770018676349,0.1024,2237.5,2235.8,0.0008]
[1770018676350,0.1024,2237.3,2235.8,0.0008]
[1770018676582,0.1024,2237.3,2235.9,0.937]
[1770018676756,2.01877821,2237.3,2235.8,0.0008]
[1770018676945,0.56858537,2237.2,2235.8,0.0008]
[1770018677585,0.56858537,2237.2,2236.1,13.62353615]
[1770018677786,1.29617665,2237.1,2236.1,0.001]
[1770018677949,0.1024,2236.9,2235.9,0.001]
[1770018678149,1.78609385,2236.9,2235.8,0.0008]
[1770018678376,0.3855552,2236.8,2235.8,0.0008]
[1770018679780,1.19377665,2237.6,2235.8,13.62333615]
[1770018679985,0.39413786,2237.5,2236.0,13.62253615]
[1770018680166,0.39413786,2237.5,2236.1,0.937]
[1770018680371,0.39413786,2237.5,2236.2,14.5]
[1770018680687,0.39413786,2237.5,2236.3,0.937]
[1770018680879,0.39413786,2237.5,2236.3,14.55953615]
[1770018681045,0.39413786,2237.5,2236.4,2.90595362]
[1770018681452,0.1024,2237.2,2235.9,1.36233362]
[1770018681682,0.1024,2237.0,2235.9,1.36233362]
[1770018681894,0.42084138,2237.0,2235.8,0.0008]
[1770018683186,0.1024,2236.9,2235.9,0.937]
[1770018683558,0.48073707,2236.9,2235.9,0.937]
[1770018683970,0.37833707,2236.9,2235.9,0.937]
[1770018684485,0.1024,2237.5,2236.0,0.937]
[1770018684683,0.1024,2237.5,2236.1,1.45595361]
[1770018684998,0.49940153,2237.5,2236.2,0.937]
[1770018685163,0.37659347,2237.4,2236.2,0.937]
[1770018685369,0.37659347,2237.4,2236.2,14.55953615]
[1770018685570,0.42811476,2238.3,2236.2,14.55953615]
[1770018685765,0.42811476,2238.3,2236.4,13.62253615]
[1770018685967,0.42811476,2238.3,2236.6,13.62253615]
[1770018686169,0.42811476,2238.3,2236.7,14.55953615]
[1770018686616,13.23242573,2239.4,2236.8,13.85610645]
[1770018686793,12.99900168,2239.4,2237.0,13.62253615]
[1770018686994,1.70722845,2239.3,2237.2,13.62253615]
[1770018687203,0.1024,2239.1,2237.2,13.62253615]
[1770018687520,0.38526192,2239.2,2237.4,13.62253615]
[1770018687885,0.1024,2239.1,2237.4,13.62253615]
[1770018688085,0.38526192,2239.2,2237.6,13.62253615]
[1770018688312,0.38526192,2239.2,2237.7,16.16048464]
[1770018688989,0.38526192,2239.2,2237.8,14.5]
[1770018689413,0.38526192,2239.2,2237.8,28.12253615]
[1770018690125,0.38526192,2239.2,2237.9,0.937]
[1770018691411,0.0011,2238.1,2237.8,13.62253615]
[1770018691618,0.38526192,2239.2,2237.9,2.39295361]
[1770018691826,0.0011,2238.3,2237.9,0.937]
[1770018692004,0.38526192,2239.2,2237.9,0.937]
[1770018692208,0.1024,2239.1,2237.4,14.5]
[1770018692411,0.1024,2239.1,2237.5,14.55953615]
[1770018692911,0.1024,2239.1,2237.5,13.62253615]
[1770018693236,0.1024,2239.1,2237.6,2.81225362]
[1770018693446,0.1024,2239.1,2237.6,0.937]
[1770018693940,0.1024,2239.1,2237.7,0.937]
[1770018695137,0.1024,2239.1,2237.8,0.937]
[1770018695444,0.1024,2239.1,2237.2,13.62253615]
[1770018695621,13.10140168,2239.1,2237.3,0.937]
[1770018695815,13.10140168,2238.9,2237.4,0.937]
[1770018696017,13.10140168,2238.9,2237.5,0.937]
[1770018696835,13.10140168,2238.9,2237.6,0.937]
[1770018697046,0.1024,2239.0,2237.6,14.55953615]
[1770018697225,0.1024,2239.0,2237.7,1.45595361]
[1770018697755,0.38636192,2239.2,2237.7,1.45595361]
[1770018697937,0.38636192,2239.2,2237.7,14.20816729]
[1770018698116,0.38636192,2239.2,2237.7,1.45595361]
[1770018698314,0.38636192,2239.2,2237.8,0.937]
[1770018698518,0.1024,2239.1,2237.9,0.937]
[1770018698749,0.1024,2239.1,2238.0,0.937]
[1770018699332,0.38636192,2239.2,2238.0,0.937]
[1770018699533,0.38636192,2239.2,2237.6,12.75221368]
[1770018699736,0.38636192,2239.2,2237.7,2.21222137]
[1770018700557,0.38636192,2239.2,2237.7,14.96443505]
[1770018700756,0.38636192,2239.2,2237.7,14.02743505]
[1770018700923,0.38636192,2239.2,2237.8,13.68921368]
[1770018701119,0.38636192,2239.2,2238.0,12.75221368]
[1770018701356,0.38636192,2239.2,2237.9,15.437]
[1770018701357,0.38636192,2239.2,2238.2,12.75221368]
[1770018702168,1.5907285,2240.5,2238.3,14.5]
[1770018702335,0.1024,2240.3,2238.4,12.75221368]
[1770018702665,13.58836072,2240.6,2238.4,12.75221368]
[1770018702961,0.1024,2240.4,2238.4,12.75221368]
[1770018703148,1.566926,2240.4,2238.6,12.75221368]
[1770018703534,15.15528672,2240.4,2238.5,2.72522137]
[1770018703760,0.1024,2240.3,2238.7,0.937]
[1770018704431,13.69076072,2240.3,2238.8,0.937]
[1770018704631,0.0011,2239.0,2238.8,0.937]
[1770018704843,13.69076072,2240.3,2238.5,2.72522137]
[1770018705075,0.1024,2240.1,2238.6,1.20952214]
[1770018705242,0.1024,2240.1,2238.6,0.937]
[1770018705437,0.0011,2239.2,2238.5,12.75221368]
[1770018705756,0.1024,2240.1,2238.7,0.937]
[1770018705957,0.0011,2240.1,2238.8,12.75221368]
[1770018706163,0.0011,2240.1,2238.9,0.937]
[1770018706363,0.0011,2240.1,2239.0,1.36892137]
[1770018707145,0.0011,2240.1,2239.1,0.937]
[1770018707467,0.0011,2240.1,2239.2,0.937]
[1770018707962,0.0011,2240.1,2238.4,12.75221368]
[1770018708342,0.0011,2240.1,2238.5,0.937]
[1770018708532,0.0011,2240.1,2238.4,12.75221368]
[1770018708738,0.0011,2240.1,2238.6,0.937]
[1770018709145,13.65020233,2240.1,2238.5,2.72522137]
[1770018709373,0.1024,2239.9,2238.6,0.937]
[1770018710160,13.75150233,2239.9,2238.7,0.937]
[1770018710355,13.75150233,2239.7,2237.9,0.001]
[1770018710578,0.1024,2239.5,2238.0,0.937]
[1770018710871,13.64910233,2240.0,2238.0,13.97811138]
[1770018711180,1.46742023,2239.9,2238.2,13.04111138]
[1770018711681,0.1024,2239.9,2238.2,13.04111138]
[1770018711865,0.1024,2239.9,2238.3,15.437]